fUST/lending_fUST_20250106
["ID","MTS","AMOUNT","RATE_DAILY","PERIOD"]
[347778586,1736103034840,-155.9606028,0.00022178,2]
[347778587,1736103034850,-309.5116104,0.00022178,2]
[347778588,1736103034860,-402.6526866,0.00022178,2]
[347778589,1736103034869,-307.6506763,0.00022178,2]
[347778590,1736103034879,-493.1691718,0.00022178,2]
[347778591,1736103034890,-510.64323945,0.00022237,3]
[347778592,1736103034902,-420.91,0.00022237,3]
[347778593,1736103034912,-151.0,0.00022238,2]
[347778594,1736103034921,-1843.3,0.00022278,3]
[347778595,1736103034931,-303.43,0.00022279,3]
[347778596,1736103034940,-228.62693141,0.00022279,2]
[347778597,1736103034951,-500.0,0.00022281,3]
[347778598,1736103034960,-156.9406246,0.00022331,2]
[347778599,1736103034970,-238.63834095,0.00022359,2]
[347778600,1736103034979,-228.62693141,0.00022383,2]
[347778601,1736103034988,-228.62693141,0.00022486,2]
[347778602,1736103034997,-800.00159163,0.000225,2]
[347778603,1736103035008,-151.0,0.00022516,7]
[347778604,1736103035020,-672.04411194,0.00022521,2]
[347778605,1736103035032,-199.99999999,0.0002255,2]
[347778606,1736103035042,-1843.3,0.00022552,3]
[347778607,1736103035051,-157.74,0.00022555,3]
[347778608,1736103035060,-582.30238414,0.00022586,59]
[347778609,1736103035075,-8567.75949866,0.00022586,59]
[347778610,1736103035086,-31.58476643,0.00022586,59]
[347778611,1736103035096,-228.62693141,0.0002259,2]
[347778612,1736103035105,-151.0,0.00022596,7]
[347778613,1736103035114,-57.70330216,0.00022596,7]
[347778614,1736103035141,-93.29669784,0.00022596,7]
[347778615,1736103035150,-238.63834095,0.00022607,2]
[347778616,1736103035159,-228.62693141,0.00022693,2]
[347778617,1736103035168,-92.19255179,0.000227,31]
[347778648,1736103038114,-221.0980722,0.0001937,2]
[347778650,1736103038124,-500.0,0.00019812,3]
[347778652,1736103038134,-61.71744821,0.000227,31]
[347778654,1736103038144,-153.91,0.000227,31]
[347778656,1736103038153,-153.91,0.000227,31]
[347778658,1736103038163,-153.91,0.000227,31]
[347778660,1736103038172,-153.91,0.000227,31]
[347778662,1736103038186,-153.91,0.000227,31]
[347778664,1736103038195,-153.91,0.000227,31]
[347778677,1736103038299,-5941.43774364,0.000227,2]
[347778679,1736103038312,-4366.83440533,0.000227,2]
[347778681,1736103038321,-160.877357,0.00022759,2]
[347778683,1736103038331,-228.62693141,0.00022797,2]
[347778685,1736103038340,-563.68,0.000228,2]
[347778687,1736103038350,-1843.3,0.00022826,3]
[347778689,1736103038359,-156.9406246,0.00022855,2]
[347778691,1736103038368,-238.63834095,0.00022855,2]
[347778693,1736103038378,-151.0,0.000229,9]
[347778695,1736103038387,-878.5406007,0.000229,10]
[347778697,1736103038396,-228.62693141,0.000229,2]
[347778699,1736103038406,-500.0,0.00022941,3]
[347778701,1736103038416,-502.64140384,0.00022941,3]
[347778703,1736103038425,-500.0,0.00022941,3]
[347778706,1736103038437,-642.42,0.00022941,3]
[347778708,1736103038446,-500.0,0.00022941,3]
[347778710,1736103038455,-500.0,0.00022941,3]
[347778711,1736103038464,-500.0,0.00022941,3]
[347778714,1736103038473,-151.0,0.00022945,7]
[347778715,1736103038483,-151.0,0.00022945,7]
[347778717,1736103038492,-151.0,0.00022945,7]
[347778719,1736103038501,-151.0,0.00022945,7]
[347778722,1736103038511,-151.0,0.00022945,7]
[347778724,1736103038520,-271.030568,0.00022945,7]
[347778725,1736103038530,-151.0,0.00022945,7]
[347778727,1736103038539,-151.0,0.00022945,7]
[347778730,1736103038549,-151.0,0.00022945,7]
[347778732,1736103038559,-151.0,0.00022945,7]
[347778733,1736103038568,-151.0,0.00022945,7]
[347778735,1736103038577,-151.0,0.00022945,7]
[347778737,1736103038587,-151.0,0.00022945,7]
[347778739,1736103038596,-151.0,0.00022945,7]
[347778741,1736103038606,-151.0,0.00022945,7]
[347778743,1736103038615,-6023.0,0.00022946,2]
[347778745,1736103038624,-150.09,0.00022946,10]
[347778747,1736103038634,-151.0,0.00022955,7]
[347778749,1736103038643,-151.0,0.00022955,7]
[347778751,1736103038652,-151.0,0.00022955,7]
[347778753,1736103038661,-151.0,0.00022955,7]
[347778755,1736103038671,-151.0,0.00022955,7]
[347778757,1736103038680,-151.0,0.00022955,7]
[347778759,1736103038690,-151.0,0.00022955,7]
[347778761,1736103038699,-151.0,0.00022955,7]
[347778763,1736103038708,-196.433612,0.00022955,7]
[347778765,1736103038717,-151.0,0.00022955,7]
[347778767,1736103038727,-300.616716,0.00022955,7]
[347778769,1736103038737,-151.0,0.00022955,7]
[347778771,1736103038746,-151.0,0.00022955,7]
[347778773,1736103038755,-151.0,0.00022955,7]
[347778775,1736103038764,-151.0,0.00022955,7]
[347778777,1736103038774,-151.0,0.00022955,7]
[347778779,1736103038783,-151.0,0.00022955,7]
[347778781,1736103038792,-151.0,0.00022955,7]
[347778783,1736103038802,-151.0,0.00022955,7]
[347778785,1736103038811,-151.0,0.00022955,7]
[347778787,1736103038820,-151.0,0.00022955,7]
[347778789,1736103038830,-151.0,0.00022955,7]
[347778791,1736103038839,-278.317138,0.00022955,7]
[347778793,1736103038848,-151.0,0.00022955,7]
[347778795,1736103038858,-151.0,0.00022955,7]
[347778797,1736103038867,-151.0,0.00022955,7]
[347778799,1736103038876,-151.0,0.00022955,7]
[347778801,1736103038886,-151.0,0.00022955,7]
[347778803,1736103038895,-151.0,0.00022955,7]
[347778805,1736103038904,-151.0,0.00022955,7]
[347778807,1736103038914,-159.182025,0.00022955,7]
[347778809,1736103038924,-278.37998,0.00022955,7]
[347778811,1736103038933,-151.0,0.00022955,2]
[347778813,1736103038943,-151.0,0.00022955,2]
[347778815,1736103038952,-198.601492,0.00022955,2]
[347778817,1736103038962,-2351.01057084,0.00022955,2]
[347778819,1736103038971,-30463.86895749,0.00022955,2]
[347778821,1736103038980,-58393.3623454,0.00022955,10]
[347778823,1736103038992,-505.35528582,0.00022955,10]
[347778895,1736103039679,-11508.22018535,0.00022955,10]
[347778942,1736103040133,-41474.9000136,0.00022955,10]
[347778946,1736103040332,-1624.6812303,0.00022955,10]
[347778949,1736103040344,-28290.2213906,0.00022955,10]
[347778951,1736103040355,-1552.27849108,0.00022955,10]
[347779260,1736103043282,-500.0,0.00019812,3]
[347779262,1736103043291,-352.03397194,0.00021962,2]
[347779264,1736103043301,-470.57602656,0.00022955,10]
[347779266,1736103043312,-10538.96300596,0.00022955,10]
[347779268,1736103043323,-12371.45166668,0.00022955,10]
[347779270,1736103043335,-21301.88020913,0.00022955,10]
[347779273,1736103043346,-4900.74,0.00022955,10]
[347779540,1736103046117,-170672.33320341,0.00022955,10]
[347779545,1736103046152,-455.4460002,0.00022955,10]
[347779547,1736103046163,-631.66000005,0.00022955,10]
[347779549,1736103046177,-450.90238817,0.00022955,10]
[347779552,1736103046193,-6276.0,0.00022955,10]
[347779658,1736103047292,-97.27817047,0.00022955,10]
[347781027,1736103645878,160.875836,0.00013973,2]
[347781028,1736104005125,-175.96667094,0.00018432,2]
[347781029,1736104034134,-606.28778902,0.00018432,2]
[347781030,1736104034158,-1905.6206038,0.00018618,2]
[347781031,1736104034184,-250.0,0.00018811,2]
[347781032,1736104034208,-300.0,0.00019177,2]
[347781033,1736104034231,-500.0,0.00019178,2]
[347781034,1736104034254,-500.0,0.00019178,2]
[347781035,1736104034278,-500.0,0.00019178,2]
[347781036,1736104034301,-500.0,0.00019178,2]
[347781037,1736104034324,-500.0,0.00019178,2]
[347781038,1736104034347,-500.0,0.00019178,2]
[347781039,1736104034368,-500.0,0.00019178,2]
[347781040,1736104034391,-500.0,0.00019178,2]
[347781041,1736104034419,-500.0,0.00019178,2]
[347781042,1736104034441,-158.797416,0.00019178,2]
[347781043,1736104034464,-500.0,0.00019452,3]
[347781044,1736104034489,-500.0,0.00019452,3]
[347781045,1736104034512,-358.5,0.00019452,3]
[347781046,1736104034533,-429.9004449,0.000197,2]
[347781047,1736104034554,-429.9004449,0.000197,2]
[347781048,1736104034576,-165.51627024,0.00019709,2]
[347781049,1736104034598,-783.1761991,0.00019709,2]
[347781050,1736104034620,-429.9004449,0.0001971,2]
[347781051,1736104034647,-196.39252214,0.00019712,2]
[347781052,1736104034671,-203.37,0.00019726,2]
[347781053,1736104034695,-500.0,0.00019726,3]
[347781054,1736104034719,-500.0,0.00019726,3]
[347781055,1736104034741,-178.41,0.00019799,2]
[347781056,1736104034764,-151.0,0.000198,2]
[347781057,1736104034788,-178.41,0.000198,2]
[347781058,1736104034812,-500.0,0.00019808,3]
[347781059,1736104034837,-500.0,0.00019808,3]
[347781060,1736104034859,-500.0,0.00019808,3]
[347781061,1736104034882,-500.0,0.00019808,3]
[347781062,1736104034905,-500.0,0.00019808,3]
[347781063,1736104034928,-500.0,0.00019808,3]
[347781064,1736104034950,-500.0,0.00019808,3]
[347781065,1736104034973,-500.0,0.00019808,3]
[347781066,1736104034997,-500.0,0.00019808,3]
[347781067,1736104035024,-500.0,0.00019808,2]
[347781068,1736104035049,-500.0,0.00019808,2]
[347781069,1736104035076,-185.08959527,0.00019808,2]
[347781070,1736104035101,-226.79118771,0.00019808,2]
[347781071,1736104035124,-167.61632166,0.00019808,2]
[347781072,1736104035152,-500.0,0.00019808,2]
[347781073,1736104035178,-500.0,0.00019808,2]
[347781074,1736104035202,-182.14785681,0.00019808,2]
[347781075,1736104035226,-500.0,0.00019808,3]
[347781076,1736104035251,-500.0,0.00019808,3]
[347781077,1736104035275,-500.0,0.00019808,3]
[347781078,1736104035298,-500.0,0.00019809,3]
[347781079,1736104035321,-500.0,0.00019809,3]
[347781080,1736104035344,-500.0,0.00019809,3]
[347781081,1736104035367,-590.82,0.00019809,3]
[347781082,1736104035389,-500.0,0.00019809,3]
[347781083,1736104035412,-500.0,0.00019809,3]
[347781084,1736104035436,-500.0,0.00019809,3]
[347781085,1736104035461,-480.8433874,0.00019809,3]
[347781086,1736104035485,-500.0,0.00019809,3]
[347781087,1736104035512,-578.14861766,0.00019809,3]
[347781088,1736104035538,-500.0,0.00019809,3]
[347781089,1736104035560,-500.0,0.00019809,3]
[347781090,1736104035583,-500.0,0.00019809,3]
[347781091,1736104035605,-500.0,0.00019809,3]
[347781092,1736104035628,-500.0,0.00019809,3]
[347781093,1736104035652,-500.0,0.00019809,3]
[347781094,1736104035675,-500.0,0.00019809,3]
[347781095,1736104035699,-500.0,0.00019809,3]
[347781096,1736104035721,-500.0,0.00019809,3]
[347781097,1736104035744,-500.0,0.00019809,3]
[347781098,1736104035766,-500.0,0.00019809,3]
[347781099,1736104035791,-500.0,0.00019809,3]
[347781100,1736104035814,-500.0,0.00019809,3]
[347781101,1736104035835,-500.0,0.00019809,3]
[347781102,1736104035857,-500.0,0.00019809,3]
[347781103,1736104035879,-500.0,0.00019809,3]
[347781104,1736104035900,-500.0,0.00019809,3]
[347781105,1736104035922,-500.0,0.00019809,3]
[347781106,1736104035945,-500.0,0.00019809,3]
[347781107,1736104035968,-500.0,0.00019809,3]
[347781108,1736104035992,-500.0,0.00019809,3]
[347781109,1736104036016,-500.0,0.00019809,3]
[347781110,1736104036051,-500.0,0.00019809,3]
[347781111,1736104036077,-500.0,0.00019809,3]
[347781112,1736104036102,-200.0,0.00019809,3]
[347781113,1736104036129,-500.0,0.00019809,3]
[347781114,1736104036154,-500.0,0.00019809,3]
[347781115,1736104036177,-279.22681415,0.00019809,3]
[347781116,1736104036199,-500.0,0.00019809,3]
[347781117,1736104036224,-500.0,0.00019809,3]
[347781118,1736104036247,-500.0,0.00019809,3]
[347781119,1736104036268,-500.0,0.00019809,3]
[347781120,1736104036292,-500.0,0.00019809,3]
[347781121,1736104036313,-500.0,0.00019809,3]
[347781122,1736104036335,-500.0,0.00019809,3]
[347781123,1736104036458,-500.0,0.00019809,3]
[347781124,1736104036480,-500.0,0.00019809,3]
[347781125,1736104036502,-500.0,0.00019809,3]
[347781126,1736104036524,-500.0,0.00019809,3]
[347781127,1736104036547,-500.0,0.00019809,3]
[347781128,1736104036570,-500.0,0.00019809,3]
[347781129,1736104036592,-518.7850603,0.00019809,3]
[347781130,1736104036623,-550.53,0.00019809,3]
[347781131,1736104036651,-500.0,0.00019809,3]
[347781132,1736104036673,-500.0,0.00019809,3]
[347781133,1736104036696,-500.0,0.00019809,3]
[347781134,1736104036718,-500.0,0.00019809,3]
[347781135,1736104036741,-500.0,0.00019809,3]
[347781136,1736104036764,-500.0,0.00019809,3]
[347781137,1736104036790,-571.57085,0.00019809,3]
[347781138,1736104036814,-500.0,0.00019809,3]
[347781139,1736104036838,-500.0,0.00019809,3]
[347781140,1736104036859,-609.28050601,0.00019809,3]
[347781141,1736104036882,-500.0,0.00019809,3]
[347781142,1736104036904,-500.0,0.00019809,3]
[347781143,1736104036925,-500.0,0.00019809,3]
[347781144,1736104036947,-500.0,0.00019809,3]
[347781145,1736104036969,-500.0,0.00019809,3]
[347781146,1736104036991,-500.0,0.00019809,3]
[347781147,1736104037012,-500.0,0.00019809,3]
[347781148,1736104037037,-500.0,0.00019809,3]
[347781149,1736104037060,-500.0,0.00019809,3]
[347781150,1736104037081,-258.75903988,0.00019809,3]
[347781151,1736104037105,-627.85739977,0.00019809,3]
[347781152,1736104037126,-500.0,0.00019809,3]
[347781153,1736104037149,-500.0,0.00019809,3]
[347781154,1736104037169,-500.0,0.00019809,3]
[347781155,1736104037189,-500.0,0.00019809,3]
[347781156,1736104037209,-500.0,0.00019809,3]
[347781157,1736104037230,-500.0,0.00019809,3]
[347781158,1736104037252,-500.0,0.00019809,3]
[347781159,1736104037276,-500.0,0.00019809,3]
[347781160,1736104037298,-500.0,0.00019809,3]
[347781161,1736104037319,-500.0,0.00019809,3]
[347781162,1736104037339,-507.10009665,0.00019809,3]
[347781163,1736104037361,-500.0,0.00019809,3]
[347781164,1736104037381,-500.0,0.00019809,3]
[347781165,1736104037404,-500.0,0.00019809,3]
[347781166,1736104037425,-463.49033799,0.00019809,3]
[347781167,1736104037447,-500.0,0.00019809,3]
[347781168,1736104037469,-500.0,0.00019809,3]
[347781169,1736104037490,-500.0,0.00019809,3]
[347781170,1736104037511,-500.0,0.00019809,3]
[347781171,1736104037533,-500.0,0.00019809,3]
[347781172,1736104037555,-500.0,0.00019809,3]
[347781173,1736104037580,-500.0,0.00019809,3]
[347781174,1736104037604,-500.0,0.00019809,3]
[347781175,1736104037627,-237.9477663,0.00019809,3]
[347781176,1736104037653,-500.0,0.00019809,3]
[347781177,1736104037677,-507.48387988,0.00019809,3]
[347781178,1736104037700,-500.0,0.00019809,3]
[347781179,1736104037724,-500.0,0.00019809,3]
[347781180,1736104037747,-502.71314544,0.00019809,3]
[347781181,1736104037768,-500.0,0.00019809,3]
[347781182,1736104037791,-500.0,0.00019809,3]
[347781183,1736104037815,-500.0,0.00019809,3]
[347781184,1736104037837,-500.0,0.00019809,3]
[347781185,1736104037859,-500.0,0.00019809,3]
[347781186,1736104037881,-500.0,0.00019809,3]
[347781187,1736104037931,-502.63554415,0.00019809,3]
[347781188,1736104037967,-500.0,0.00019809,3]
[347781189,1736104038004,-500.0,0.00019809,3]
[347781190,1736104038040,-500.0,0.00019809,3]
[347781191,1736104038076,-500.0,0.00019809,3]
[347781192,1736104038113,-501.27810785,0.00019809,3]
[347781193,1736104038150,-500.0,0.00019809,3]
[347781194,1736104038187,-500.0,0.00019809,3]
[347781195,1736104038228,-500.0,0.00019809,3]
[347781196,1736104038266,-500.0,0.00019809,3]
[347781197,1736104038306,-500.0,0.00019809,3]
[347781198,1736104038346,-500.0,0.00019809,3]
[347781199,1736104038384,-574.63849654,0.00019809,3]
[347781200,1736104038422,-500.0,0.00019809,3]
[347781201,1736104038458,-500.0,0.00019809,3]
[347781202,1736104038497,-500.0,0.00019809,3]
[347781203,1736104038534,-500.0,0.00019809,3]
[347781204,1736104038576,-579.36,0.00019809,3]
[347781205,1736104038614,-500.0,0.00019809,3]
[347781206,1736104038656,-500.0,0.00019809,3]
[347781207,1736104038695,-500.0,0.00019809,3]
[347781208,1736104038734,-500.0,0.00019809,3]
[347781209,1736104038771,-500.0,0.00019809,3]
[347781210,1736104038809,-501.15665779,0.00019809,3]
[347781211,1736104038848,-500.0,0.00019809,3]
[347781212,1736104038883,-500.41877827,0.00019809,3]
[347781213,1736104038921,-500.0,0.00019809,3]
[347781214,1736104038955,-500.0,0.00019809,3]
[347781215,1736104038990,-500.0,0.00019809,3]
[347781216,1736104039025,-500.0,0.00019809,3]
[347781217,1736104039060,-500.0,0.00019809,3]
[347781218,1736104039097,-500.0,0.00019809,3]
[347781219,1736104039131,-500.0,0.00019809,3]
[347781220,1736104039167,-500.0,0.00019809,3]
[347781221,1736104039205,-500.0,0.00019809,3]
[347781222,1736104039242,-500.0,0.00019809,3]
[347781223,1736104039278,-500.0,0.00019809,3]
[347781224,1736104039313,-500.0,0.00019809,3]
[347781225,1736104039351,-500.0,0.00019809,3]
[347781226,1736104039386,-500.0,0.00019809,3]
[347781227,1736104039422,-500.0,0.00019809,3]
[347781228,1736104039456,-500.0,0.00019809,3]
[347781229,1736104039492,-500.0,0.00019809,3]
[347781230,1736104039527,-500.0,0.00019809,3]
[347781231,1736104039563,-500.0,0.00019809,3]
[347781232,1736104039600,-500.0,0.00019809,3]
[347781233,1736104039638,-500.0,0.00019809,3]
[347781234,1736104039678,-500.0,0.00019809,3]
[347781235,1736104039719,-500.0,0.00019809,3]
[347781236,1736104039756,-500.0,0.00019809,3]
[347781237,1736104039793,-500.0,0.00019809,3]
[347781238,1736104039831,-500.0,0.00019809,3]
[347781239,1736104039869,-500.0,0.00019809,3]
[347781240,1736104039907,-542.96,0.00019809,3]
[347781241,1736104039942,-500.0,0.00019809,3]
[347781242,1736104039980,-500.0,0.00019809,3]
[347781243,1736104040136,-500.0,0.00019809,3]
[347781244,1736104040171,-500.0,0.00019809,3]
[347781245,1736104040208,-500.0,0.00019809,3]
[347781246,1736104040244,-500.0,0.00019809,3]
[347781247,1736104040281,-500.0,0.00019809,3]
[347781248,1736104040316,-500.0,0.00019809,3]
[347781249,1736104040351,-500.0,0.00019809,3]
[347781250,1736104040392,-549.53786273,0.00019809,3]
[347781251,1736104040428,-500.0,0.00019809,3]
[347781252,1736104040466,-500.0,0.00019809,3]
[347781253,1736104040503,-500.0,0.00019809,3]
[347781254,1736104040540,-502.49950893,0.00019809,3]
[347781255,1736104040577,-620.0767155,0.00019809,3]
[347781256,1736104040615,-500.0,0.00019809,3]
[347781257,1736104040653,-500.0,0.00019809,3]
[347781258,1736104040689,-504.4636409,0.00019809,3]
[347781259,1736104040728,-511.13086422,0.00019809,3]
[347781260,1736104040764,-500.0,0.00019809,3]
[347781261,1736104040802,-500.0,0.00019809,3]
[347781262,1736104040838,-500.0,0.00019809,3]
[347781263,1736104040873,-500.0,0.00019809,3]
[347781264,1736104040911,-500.0,0.00019809,3]
[347781265,1736104040947,-500.0,0.00019809,3]
[347781266,1736104040985,-500.0,0.00019809,3]
[347781267,1736104041023,-500.0,0.00019809,3]
[347781268,1736104041060,-502.15222398,0.00019809,3]
[347781269,1736104041096,-500.0,0.00019809,3]
[347781270,1736104041131,-500.0,0.00019809,3]
[347781271,1736104041167,-500.0,0.00019809,3]
[347781272,1736104041202,-500.0,0.00019809,3]
[347781273,1736104041236,-501.20344896,0.00019809,3]
[347781274,1736104041274,-500.0,0.00019809,3]
[347781275,1736104041308,-578.30690411,0.00019809,3]
[347781276,1736104041345,-503.94850732,0.00019809,3]
[347781277,1736104041379,-503.09049719,0.00019809,3]
[347781278,1736104041416,-500.0,0.00019809,3]
[347781279,1736104041453,-500.0,0.00019809,3]
[347781280,1736104041489,-509.64465727,0.00019809,3]
[347781281,1736104041526,-500.0,0.00019809,3]
[347781282,1736104041561,-500.0,0.00019809,2]
[347781283,1736104041599,-608.01423433,0.00019809,3]
[347781284,1736104041639,-500.0,0.00019809,3]
[347781285,1736104041678,-500.0,0.00019809,3]
[347781286,1736104041714,-500.0,0.00019809,3]
[347781287,1736104041750,-500.0,0.00019809,3]
[347781288,1736104041788,-500.0,0.00019809,3]
[347781289,1736104041824,-500.0,0.00019809,3]
[347781290,1736104041865,-465.39065536,0.00019809,3]
[347781291,1736104041901,-500.0,0.00019809,3]
[347781292,1736104041939,-392.98716277,0.00019809,3]
[347781293,1736104041974,-500.0,0.00019809,3]
[347781294,1736104042011,-500.0,0.00019809,3]
[347781295,1736104042047,-500.0,0.00019809,3]
[347781296,1736104042082,-500.0,0.00019809,3]
[347781297,1736104042117,-500.0,0.00019809,3]
[347781298,1736104042151,-500.0,0.00019809,3]
[347781299,1736104042188,-500.0,0.00019809,3]
[347781300,1736104042223,-500.0,0.00019809,3]
[347781301,1736104042260,-500.0,0.00019809,3]
[347781302,1736104042296,-500.0,0.00019809,3]
[347781303,1736104042333,-500.0,0.00019809,3]
[347781304,1736104042368,-500.0,0.00019809,3]
[347781305,1736104042402,-500.0,0.00019809,3]
[347781306,1736104042438,-500.0,0.00019809,3]
[347781307,1736104042471,-500.0,0.00019809,3]
[347781308,1736104042505,-500.36740754,0.00019809,3]
[347781309,1736104042539,-500.0,0.00019809,3]
[347781310,1736104042574,-500.0,0.00019809,3]
[347781311,1736104042610,-500.0,0.00019809,3]
[347781312,1736104042646,-250.83211713,0.00019809,3]
[347781313,1736104042768,-249.16788287,0.00019809,3]
[347781314,1736104042791,-500.0,0.00019809,3]
[347781315,1736104042814,-20.30398769,0.00019809,3]
[347781316,1736104042854,-479.69601231,0.00019809,3]
[347781317,1736104042879,-500.0,0.00019809,3]
[347781318,1736104042901,-489.18747345,0.00019809,3]
[347781320,1736104145116,-241.61791784,0.00018811,2]
[347781321,1736104154131,-53.26685416,0.00018811,2]
[347781322,1736104154154,-500.0,0.00019178,2]
[347781323,1736104154177,-500.0,0.00019178,2]
[347781324,1736104154200,-500.0,0.00019178,2]
[347781325,1736104154224,-200.75674584,0.00019452,3]
[347781326,1736104157127,-147.86325416,0.00019452,3]
[347781327,1736104157150,-225.76255184,0.00019808,3]
[347781328,1736104161186,-274.23744816,0.00019808,3]
[347781329,1736104161223,-500.0,0.00019808,3]
[347781330,1736104161258,-500.0,0.00019808,3]
[347781331,1736104161295,-288.96,0.00019808,3]
[347781332,1736104161330,-500.0,0.00019808,3]
[347781333,1736104161364,-500.0,0.00019808,3]
[347781334,1736104161400,-500.0,0.00019808,3]
[347781335,1736104161435,-500.0,0.00019808,3]
[347781336,1736104161471,-248.49,0.00019808,3]
[347781337,1736104161507,-500.0,0.00019808,3]
[347781338,1736104161542,-500.0,0.00019808,3]
[347781339,1736104161579,-500.0,0.00019808,3]
[347781340,1736104161613,-10.81252655,0.00019809,3]
[347781341,1736104161654,-500.0,0.00019809,3]
[347781342,1736104161693,-500.0,0.00019809,3]
[347781343,1736104161727,-255.87189111,0.00019809,3]
[347781344,1736104161765,-500.0,0.00019809,3]
[347781345,1736104161799,-500.0,0.00019809,3]
[347781346,1736104161834,-500.0,0.00019809,3]
[347781347,1736104161870,-500.0,0.00019809,3]
[347781348,1736104161904,-500.0,0.00019809,3]
[347781349,1736104161938,-500.0,0.00019809,3]
[347781350,1736104161971,-500.0,0.00019809,3]
[347781351,1736104162003,-500.0,0.00019809,3]
[347781352,1736104162038,-500.0,0.00019809,3]
[347781353,1736104162072,-500.0,0.00019809,3]
[347781354,1736104162107,-500.0,0.00019809,3]
[347781355,1736104162141,-500.0,0.00019809,3]
[347781356,1736104162174,-500.0,0.00019809,3]
[347781357,1736104162208,-500.0,0.00019809,3]
[347781358,1736104162244,-500.0,0.00019809,3]
[347781359,1736104162279,-500.0,0.00019809,3]
[347781360,1736104162314,-500.0,0.00019809,3]
[347781361,1736104162348,-501.03752456,0.00019809,3]
[347781362,1736104162383,-557.42,0.00019809,3]
[347781363,1736104162416,-500.0,0.00019809,3]
[347781364,1736104162450,-500.0,0.00019809,3]
[347781365,1736104162484,-570.41768047,0.00019809,3]
[347781366,1736104162518,-500.0,0.00019809,3]
[347781367,1736104162553,-500.0,0.00019809,3]
[347781368,1736104162587,-500.0,0.00019809,3]
[347781369,1736104162624,-500.0,0.00019809,3]
[347781370,1736104162664,-500.0,0.00019809,3]
[347781371,1736104162700,-500.0,0.00019809,3]
[347781372,1736104162734,-500.0,0.00019809,3]
[347781373,1736104162769,-500.0,0.00019809,3]
[347781374,1736104162801,-500.0,0.00019809,3]
[347781375,1736104162835,-500.0,0.00019809,3]
[347781376,1736104162869,-500.0,0.00019809,3]
[347781377,1736104162904,-500.0,0.00019809,3]
[347781378,1736104162937,-500.0,0.00019809,3]
[347781379,1736104162970,-527.47,0.00019809,3]
[347781380,1736104163004,-500.0,0.00019809,3]
[347781381,1736104163038,-500.0,0.00019809,3]
[347781382,1736104163073,-500.0,0.00019809,3]
[347781383,1736104163107,-500.0,0.00019809,3]
[347781384,1736104163139,-500.0,0.00019809,3]
[347781385,1736104163171,-504.10079144,0.00019809,3]
[347781386,1736104163204,-502.60240381,0.00019809,3]
[347781387,1736104163236,-285.97012971,0.00019809,3]
[347781388,1736104163270,-500.0,0.00019809,3]
[347781389,1736104163302,-500.0,0.00019809,3]
[347781390,1736104163334,-500.0,0.00019809,3]
[347781391,1736104163377,-500.0,0.00019809,3]
[347781392,1736104163410,-500.0,0.00019809,3]
[347781393,1736104163444,-500.0,0.00019809,3]
[347781394,1736104163478,-500.0,0.00019809,3]